[Event "*** MasterClass Titled Tuesday Blitz"]
[Site "Chess.com"]
[Date "2017.12.05"]
[Round "8"]
[White "aa175"]
[Black "lucasmito"]
[Result "0-1"]
[WhiteElo "1868"]
[BlackElo "2203"]
[TimeControl "180+2"]
[EndTime "16:00:26 PST"]
[Termination "lucasmito won by checkmate"]

1. e4 {[%clk 0:03:01.9]} 1... e5 {[%clk 0:03:00.6]} 2. Nf3 {[%clk 0:03:02.1]}
2... Nc6 {[%clk 0:02:57.5]} 3. Bc4 {[%clk 0:03:01.7]} 3... Nf6 {[%clk
0:02:57.5]} 4. d3 {[%clk 0:02:59.7]} 4... Bc5 {[%clk 0:02:58.1]} 5. Nc3 {[%clk
0:02:55.9]} 5... d6 {[%clk 0:02:58.6]} 6. h3 {[%clk 0:02:53.9]} 6... a6 {[%clk
0:02:58.1]} 7. a3 {[%clk 0:02:43.3]} 7... Ba7 {[%clk 0:02:58.6]} 8. Ba2 {[%clk
0:02:28]} 8... h6 {[%clk 0:02:57.2]} 9. O-O {[%clk 0:02:14.9]} 9... O-O {[%clk
0:02:57.9]} 10. Be3 {[%clk 0:02:14.2]} 10... Re8 {[%clk 0:02:57.4]} 11. Qd2
{[%clk 0:02:10]} 11... Be6 {[%clk 0:02:55.5]} 12. Kh2 {[%clk 0:01:50.6]} 12...
d5 {[%clk 0:02:52.4]} 13. exd5 {[%clk 0:01:46.1]} 13... Nxd5 {[%clk 0:02:54.3]}
14. Nxd5 {[%clk 0:01:45.1]} 14... Bxd5 {[%clk 0:02:55.4]} 15. Bxa7 {[%clk
0:01:38.8]} 15... Rxa7 {[%clk 0:02:51.1]} 16. Bxd5 {[%clk 0:01:35.5]} 16... Qxd5
{[%clk 0:02:53]} 17. Rfe1 {[%clk 0:01:33.2]} 17... Raa8 {[%clk 0:02:52.7]} 18.
Qe3 {[%clk 0:01:18.8]} 18... Rad8 {[%clk 0:02:50.7]} 19. Nd2 {[%clk 0:01:11]}
19... Nd4 {[%clk 0:02:48.2]} 20. Rac1 {[%clk 0:00:51.3]} 20... f5 {[%clk
0:02:32.6]} 21. Nc4 {[%clk 0:00:42]} 21... Nc6 {[%clk 0:02:17.4]} 22. Nd2 {[%clk
0:00:29.9]} 22... e4 {[%clk 0:02:12.8]} 23. Nb3 {[%clk 0:00:11.9]} 23... exd3
{[%clk 0:02:09.8]} 24. Qxd3 {[%clk 0:00:10.8]} 24... Qxd3 {[%clk 0:02:05]} 25.
cxd3 {[%clk 0:00:12.7]} 25... Rxe1 {[%clk 0:02:05]} 26. Rxe1 {[%clk 0:00:14.6]}
26... Rxd3 {[%clk 0:02:06]} 27. Nc5 {[%clk 0:00:15.6]} 27... Rd2 {[%clk
0:02:07]} 28. Nxb7 {[%clk 0:00:15]} 28... Rxb2 {[%clk 0:02:07.7]} 29. Nc5 {[%clk
0:00:14.5]} 29... Rxf2 {[%clk 0:02:01.5]} 30. Nxa6 {[%clk 0:00:14.9]} 30... Ra2
{[%clk 0:01:52.4]} 31. Nxc7 {[%clk 0:00:11.5]} 31... Rxa3 {[%clk 0:01:52]} 32.
Nd5 {[%clk 0:00:10.9]} 32... Rd3 {[%clk 0:01:13.4]} 33. Nf4 {[%clk 0:00:08.6]}
33... Rd2 {[%clk 0:01:13.2]} 34. Rc1 {[%clk 0:00:05.1]} 34... Nd4 {[%clk
0:01:09]} 35. Rc8+ {[%clk 0:00:05.3]} 35... Kf7 {[%clk 0:01:06.7]} 36. Rc7+
{[%clk 0:00:06.1]} 36... Kg8 {[%clk 0:00:58.3]} 37. Rc8+ {[%clk 0:00:04.5]}
37... Kh7 {[%clk 0:00:58.1]} 38. Rc7 {[%clk 0:00:05.2]} 38... Nf3+ {[%clk
0:00:41]} 39. Kg3 {[%clk 0:00:06]} 39... Ng5 {[%clk 0:00:42.1]} 40. Nh5 {[%clk
0:00:04.2]} 40... Ne6 {[%clk 0:00:43]} 41. Rb7 {[%clk 0:00:04.1]} 41... Kg6
{[%clk 0:00:41.3]} 42. Nf4+ {[%clk 0:00:04.9]} 42... Nxf4 {[%clk 0:00:42]} 43.
Kxf4 {[%clk 0:00:05.8]} 43... Rxg2 {[%clk 0:00:41.2]} 44. Rb6+ {[%clk
0:00:06.6]} 44... Kh5 {[%clk 0:00:42]} 45. Kxf5 {[%clk 0:00:07.7]} 45... Rg3
{[%clk 0:00:37.3]} 46. Rb7 {[%clk 0:00:05.2]} 46... g5 {[%clk 0:00:36.8]} 47.
Rb6 {[%clk 0:00:02.6]} 47... Rf3+ {[%clk 0:00:36.1]} 48. Ke4 {[%clk 0:00:03.4]}
48... Rxh3 {[%clk 0:00:38]} 49. Rb5 {[%clk 0:00:04.4]} 49... Kg4 {[%clk
0:00:36.6]} 50. Rb4 {[%clk 0:00:03.6]} 50... Rf3 {[%clk 0:00:36.3]} 51. Ke5+
{[%clk 0:00:04.9]} 51... Rf4 {[%clk 0:00:37.3]} 52. Rb6 {[%clk 0:00:06]} 52...
h5 {[%clk 0:00:38.3]} 53. Rb3 {[%clk 0:00:06.3]} 53... h4 {[%clk 0:00:39.5]} 54.
Kd5 {[%clk 0:00:03.3]} 54... h3 {[%clk 0:00:39.5]} 55. Ke5 {[%clk 0:00:02.4]}
55... h2 {[%clk 0:00:40.3]} 56. Rb1 {[%clk 0:00:03.3]} 56... Kg3 {[%clk
0:00:41.6]} 57. Ke6 {[%clk 0:00:03.1]} 57... Kg2 {[%clk 0:00:42.7]} 58. Rb2+
{[%clk 0:00:04.2]} 58... Rf2 {[%clk 0:00:43.2]} 59. Rb1 {[%clk 0:00:03.9]} 59...
g4 {[%clk 0:00:39.3]} 60. Rh1 {[%clk 0:00:05.8]} 60... Kxh1 {[%clk 0:00:39.2]}
61. Ke5 {[%clk 0:00:07.7]} 61... Kg2 {[%clk 0:00:40.5]} 62. Ke4 {[%clk
0:00:09.6]} 62... h1=Q {[%clk 0:00:41.8]} 63. Kd5 {[%clk 0:00:11.5]} 63... Qe1
{[%clk 0:00:42.4]} 64. Kd6 {[%clk 0:00:12.5]} 64... Kf1 {[%clk 0:00:43.2]} 65.
Kc5 {[%clk 0:00:14.4]} 65... Rd2 {[%clk 0:00:37.8]} 66. Kb4 {[%clk 0:00:16.3]}
66... Qc1 {[%clk 0:00:38.2]} 67. Kb3 {[%clk 0:00:16.8]} 67... Rb2+ {[%clk
0:00:39]} 68. Ka3 {[%clk 0:00:02.5]} 68... Qa1# {[%clk 0:00:40.9]} 0-1

[Event "*** MasterClass Titled Tuesday Blitz"]
[Site "Chess.com"]
[Date "2017.12.05"]
[Round "8"]
[White "bascheyaro"]
[Black "HarutyunianTigranK"]
[Result "1-0"]
[WhiteElo "2624"]
[BlackElo "2543"]
[TimeControl "180+2"]
[EndTime "16:00:40 PST"]
[Termination "bascheyaro won by checkmate"]

1. d4 {[%clk 0:03:01.9]} 1... Nf6 {[%clk 0:03:00.4]} 2. c4 {[%clk 0:03:03]} 2...
e6 {[%clk 0:03:01.7]} 3. Nf3 {[%clk 0:03:04.4]} 3... d5 {[%clk 0:03:03]} 4. e3
{[%clk 0:03:03.7]} 4... Bd6 {[%clk 0:03:01.8]} 5. Nc3 {[%clk 0:03:04.4]} 5...
O-O {[%clk 0:03:02.7]} 6. Qc2 {[%clk 0:03:05.6]} 6... b6 {[%clk 0:03:03.9]} 7.
cxd5 {[%clk 0:03:06.4]} 7... exd5 {[%clk 0:03:04.5]} 8. Bd3 {[%clk 0:03:07.7]}
8... a6 {[%clk 0:03:05]} 9. O-O {[%clk 0:03:08.7]} 9... Nbd7 {[%clk 0:03:03.4]}
10. Nxd5 {[%clk 0:02:07.4]} 10... Nxd5 {[%clk 0:03:02.8]} 11. Bxh7+ {[%clk
0:01:56]} 11... Kh8 {[%clk 0:03:02.6]} 12. Be4 {[%clk 0:01:57.5]} 12... N7f6
{[%clk 0:02:37.4]} 13. Bxd5 {[%clk 0:01:58.8]} 13... Nxd5 {[%clk 0:02:39.3]} 14.
e4 {[%clk 0:02:00.3]} 14... Nb4 {[%clk 0:02:38.5]} 15. Qb3 {[%clk 0:01:55.4]}
15... a5 {[%clk 0:02:07.1]} 16. a3 {[%clk 0:01:51.6]} 16... Ba6 {[%clk
0:02:06.1]} 17. axb4 {[%clk 0:01:33.5]} 17... Bxf1 {[%clk 0:02:06.1]} 18. Kxf1
{[%clk 0:01:34.9]} 18... axb4 {[%clk 0:02:06.2]} 19. Rb1 {[%clk 0:01:36.3]}
19... c5 {[%clk 0:02:03.1]} 20. Ng5 {[%clk 0:01:31.5]} 20... Qd7 {[%clk
0:01:55.5]} 21. e5 {[%clk 0:01:00.3]} 21... Bxe5 {[%clk 0:01:37.9]} 22. dxe5
{[%clk 0:00:56.3]} 22... c4 {[%clk 0:01:39.1]} 23. Qf3 {[%clk 0:00:50.4]} 23...
Qd3+ {[%clk 0:01:38.9]} 24. Qxd3 {[%clk 0:00:51.5]} 24... cxd3 {[%clk
0:01:40.8]} 25. Be3 {[%clk 0:00:52]} 25... Kg8 {[%clk 0:01:33.4]} 26. Rd1 {[%clk
0:00:51]} 26... Rfd8 {[%clk 0:01:32]} 27. Nf3 {[%clk 0:00:36.5]} 27... b5 {[%clk
0:01:18.4]} 28. Bd4 {[%clk 0:00:35.5]} 28... Ra2 {[%clk 0:01:19.4]} 29. Ke1
{[%clk 0:00:28.9]} 29... b3 {[%clk 0:01:18.7]} 30. Kd2 {[%clk 0:00:27.5]} 30...
b4 {[%clk 0:01:17]} 31. Rb1 {[%clk 0:00:26.7]} 31... Rc8 {[%clk 0:01:18.3]} 32.
Kxd3 {[%clk 0:00:26.4]} 32... Rc2 {[%clk 0:01:20.2]} 33. Nd2 {[%clk 0:00:24.9]}
33... Rc6 {[%clk 0:01:05.5]} 34. Nxb3 {[%clk 0:00:24.8]} 34... Rh6 {[%clk
0:01:07.4]} 35. h3 {[%clk 0:00:23.2]} 35... Rg6 {[%clk 0:01:08.5]} 36. g3 {[%clk
0:00:24.3]} 36... Rh6 {[%clk 0:01:09.7]} 37. h4 {[%clk 0:00:25.6]} 37... Ra8
{[%clk 0:01:10.2]} 38. Nc5 {[%clk 0:00:25.5]} 38... Rc6 {[%clk 0:01:06.4]} 39.
Ne4 {[%clk 0:00:23.6]} 39... Rd8 {[%clk 0:01:05.9]} 40. Ra1 {[%clk 0:00:21.2]}
40... Rd5 {[%clk 0:01:03.9]} 41. Nd6 {[%clk 0:00:20.2]} 41... f5 {[%clk
0:00:56.5]} 42. Ra8+ {[%clk 0:00:18.9]} 42... Kh7 {[%clk 0:00:57.2]} 43. h5
{[%clk 0:00:20.2]} 43... Kh6 {[%clk 0:00:57.5]} 44. Nf7+ {[%clk 0:00:20.5]}
44... Kxh5 {[%clk 0:00:58.7]} 45. f3 {[%clk 0:00:21.9]} 45... Rc1 {[%clk
0:00:55.4]} 46. Rh8+ {[%clk 0:00:22.9]} 46... Kg6 {[%clk 0:00:55.8]} 47. e6
{[%clk 0:00:20]} 47... Rd1+ {[%clk 0:00:56.7]} 48. Ke2 {[%clk 0:00:21.3]} 48...
R1xd4 {[%clk 0:00:47.9]} 49. e7 {[%clk 0:00:22.6]} 49... Rd2+ {[%clk 0:00:48.9]}
50. Ke3 {[%clk 0:00:18.9]} 50... R2d3+ {[%clk 0:00:49.6]} 51. Kf2 {[%clk
0:00:16.4]} 51... Rd2+ {[%clk 0:00:50.4]} 52. Kf1 {[%clk 0:00:17.7]} 52... Rd1+
{[%clk 0:00:50.9]} 53. Kf2 {[%clk 0:00:19.2]} 53... R5d2+ {[%clk 0:00:51.8]} 54.
Ke3 {[%clk 0:00:20.4]} 54... Rd3+ {[%clk 0:00:45.5]} 55. Kf4 {[%clk 0:00:21.8]}
55... Rd4+ {[%clk 0:00:42.2]} 56. Ke5 {[%clk 0:00:23.2]} 56... R4d2 {[%clk
0:00:19.3]} 57. Ke6 {[%clk 0:00:24.3]} 57... Re1+ {[%clk 0:00:02.2]} 58. Ne5+
{[%clk 0:00:08.6]} 58... Rxe5+ {[%clk 0:00:04.1]} 59. Kxe5 {[%clk 0:00:09.4]}
59... Kf7 {[%clk 0:00:06]} 60. e8=Q# {[%clk 0:00:10]} 1-0

[Event "*** MasterClass Titled Tuesday Blitz"]
[Site "Chess.com"]
[Date "2017.12.05"]
[Round "8"]
[White "isaacAbdulsalam"]
[Black "tteshan"]
[Result "0-1"]
[WhiteElo "1955"]
[BlackElo "2020"]
[TimeControl "180+2"]
[EndTime "16:01:36 PST"]
[Termination "tteshan won by checkmate"]

1. d4 {[%clk 0:03:01.9]} 1... d5 {[%clk 0:03:00.8]} 2. c4 {[%clk 0:03:01.7]}
2... dxc4 {[%clk 0:03:01.9]} 3. Nc3 {[%clk 0:03:01.7]} 3... a6 {[%clk
0:02:59.2]} 4. a4 {[%clk 0:03:01.5]} 4... Nc6 {[%clk 0:02:56.8]} 5. Nf3 {[%clk
0:02:57.2]} 5... Bg4 {[%clk 0:02:54.6]} 6. e3 {[%clk 0:02:58.2]} 6... e6 {[%clk
0:02:46.5]} 7. Bxc4 {[%clk 0:02:57.1]} 7... Nf6 {[%clk 0:02:44.4]} 8. h3 {[%clk
0:02:56]} 8... Bh5 {[%clk 0:02:45.2]} 9. O-O {[%clk 0:02:57]} 9... Bd6 {[%clk
0:02:45.2]} 10. g4 {[%clk 0:02:48.9]} 10... Bg6 {[%clk 0:02:45.1]} 11. Re1
{[%clk 0:02:45.6]} 11... Ne4 {[%clk 0:02:44.1]} 12. Nxe4 {[%clk 0:02:42.2]}
12... Bxe4 {[%clk 0:02:43.8]} 13. Nd2 {[%clk 0:02:43.7]} 13... Bg6 {[%clk
0:02:41.1]} 14. b3 {[%clk 0:02:33.8]} 14... Qh4 {[%clk 0:02:40.7]} 15. Qf3
{[%clk 0:02:30.3]} 15... O-O {[%clk 0:02:27.8]} 16. Ba3 {[%clk 0:02:28.5]} 16...
Bxa3 {[%clk 0:02:23]} 17. Rxa3 {[%clk 0:02:28.9]} 17... Nb4 {[%clk 0:02:21.2]}
18. Rc1 {[%clk 0:02:16.8]} 18... c6 {[%clk 0:02:05]} 19. Kg2 {[%clk 0:02:12.5]}
19... Qe7 {[%clk 0:01:55.2]} 20. Raa1 {[%clk 0:02:11.8]} 20... Nc2 {[%clk
0:01:51.5]} 21. Ra2 {[%clk 0:01:49.1]} 21... Nb4 {[%clk 0:01:44.7]} 22. Raa1
{[%clk 0:01:47.6]} 22... b5 {[%clk 0:01:37.7]} 23. Bf1 {[%clk 0:01:41.6]} 23...
Rac8 {[%clk 0:01:30.3]} 24. Rc5 {[%clk 0:01:31.9]} 24... f5 {[%clk 0:01:16.2]}
25. Rac1 {[%clk 0:01:14.7]} 25... fxg4 {[%clk 0:01:08.4]} 26. Qxg4 {[%clk
0:01:14.6]} 26... Bf5 {[%clk 0:01:06.4]} 27. Qg3 {[%clk 0:01:11.8]} 27... Rf6
{[%clk 0:01:05]} 28. Kh2 {[%clk 0:01:10.5]} 28... Rg6 {[%clk 0:01:05.1]} 29. Qf4
{[%clk 0:01:03.8]} 29... Nd5 {[%clk 0:00:55.9]} 30. Qe5 {[%clk 0:00:55.2]} 30...
Qg5 {[%clk 0:00:45.8]} 31. Qg3 {[%clk 0:00:55.7]} 31... Qh5 {[%clk 0:00:41.5]}
32. Qe5 {[%clk 0:00:44.8]} 32... Qh4 {[%clk 0:00:35.3]} 33. Bg2 {[%clk
0:00:16.5]} 33... Qxf2 {[%clk 0:00:26.8]} 34. Rg1 {[%clk 0:00:16]} 34... Qh4
{[%clk 0:00:25.3]} 35. Nf3 {[%clk 0:00:08.8]} 35... Rxg2+ {[%clk 0:00:20.1]} 36.
Kxg2 {[%clk 0:00:10]} 36... Bxh3+ {[%clk 0:00:09.6]} 37. Kh2 {[%clk 0:00:10.4]}
37... Qf2+ {[%clk 0:00:06.3]} 38. Kxh3 {[%clk 0:00:10.9]} 38... Qxf3+ {[%clk
0:00:07.8]} 39. Rg3 {[%clk 0:00:12.4]} 39... Qh1+ {[%clk 0:00:08.2]} 40. Kg4
{[%clk 0:00:13.3]} 40... Nf6+ {[%clk 0:00:07.8]} 41. Kf4 {[%clk 0:00:13.2]}
41... Qf1+ {[%clk 0:00:07.3]} 42. Rf3 {[%clk 0:00:14.4]} 42... Qg2 {[%clk
0:00:08.3]} 43. Qxe6+ {[%clk 0:00:15.5]} 43... Kh8 {[%clk 0:00:08.4]} 44. Qxc8+
{[%clk 0:00:16.6]} 44... Ng8 {[%clk 0:00:09.4]} 45. Rxc6 {[%clk 0:00:17.7]}
45... Qh2+ {[%clk 0:00:09.8]} 46. Ke4 {[%clk 0:00:18.4]} 46... Qh5 {[%clk
0:00:05.6]} 47. Qf5 {[%clk 0:00:19.2]} 47... Qe8+ {[%clk 0:00:05.6]} 48. Kd3
{[%clk 0:00:20.1]} 48... Qxc6 {[%clk 0:00:06.2]} 49. Qf8 {[%clk 0:00:18.8]}
49... Qg6+ {[%clk 0:00:06.8]} 50. Qf5 {[%clk 0:00:18.1]} 50... Qc6 {[%clk
0:00:07.6]} 51. d5 {[%clk 0:00:18.5]} 51... Qc5 {[%clk 0:00:07.6]} 52. Qe4
{[%clk 0:00:19.1]} 52... bxa4 {[%clk 0:00:07.7]} 53. bxa4 {[%clk 0:00:20.6]}
53... Qa3+ {[%clk 0:00:08.5]} 54. Kd4 {[%clk 0:00:21.2]} 54... Qxa4+ {[%clk
0:00:09.1]} 55. Ke5 {[%clk 0:00:22.6]} 55... Qe8+ {[%clk 0:00:09.9]} 56. Kf4
{[%clk 0:00:23.5]} 56... Qf7+ {[%clk 0:00:09.9]} 57. Kg3 {[%clk 0:00:24.7]}
57... Qc7+ {[%clk 0:00:08.7]} 58. Qe5 {[%clk 0:00:25.2]} 58... Qxe5+ {[%clk
0:00:09.1]} 59. Kf2 {[%clk 0:00:24.4]} 59... Qxd5 {[%clk 0:00:10.4]} 60. Ke2
{[%clk 0:00:25]} 60... Qe4 {[%clk 0:00:11.1]} 61. Rf4 {[%clk 0:00:26]} 61...
Qc2+ {[%clk 0:00:11.9]} 62. Kf3 {[%clk 0:00:27.3]} 62... a5 {[%clk 0:00:12.9]}
63. e4 {[%clk 0:00:28]} 63... a4 {[%clk 0:00:13.9]} 64. e5 {[%clk 0:00:28.9]}
64... a3 {[%clk 0:00:15]} 65. Ra4 {[%clk 0:00:29.3]} 65... Qxa4 {[%clk
0:00:15.4]} 66. Ke3 {[%clk 0:00:29]} 66... a2 {[%clk 0:00:16.5]} 67. e6 {[%clk
0:00:30.1]} 67... a1=Q {[%clk 0:00:17.2]} 68. e7 {[%clk 0:00:32]} 68... Qe5+
{[%clk 0:00:17.9]} 69. Kf2 {[%clk 0:00:32.5]} 69... Qaf4+ {[%clk 0:00:18.8]} 70.
Kg1 {[%clk 0:00:33.4]} 70... Qeg5+ {[%clk 0:00:20.3]} 71. Kh1 {[%clk 0:00:32.6]}
71... Qxe7 {[%clk 0:00:13.7]} 72. Kg2 {[%clk 0:00:23.7]} 72... Qeg5+ {[%clk
0:00:14.4]} 73. Kh3 {[%clk 0:00:23.2]} 73... Qfg3# {[%clk 0:00:13.8]} 0-1

[Event "*** MasterClass Titled Tuesday Blitz"]
[Site "Chess.com"]
[Date "2017.12.05"]
[Round "9"]
[White "RookSacrifice_OLD"]
[Black "Sulvyfex"]
[Result "1-0"]
[WhiteElo "1838"]
[BlackElo "1349"]
[TimeControl "180+2"]
[EndTime "16:08:22 PST"]
[Termination "RookSacrifice_OLD won by resignation"]

1. d4 {[%clk 0:03:01.9]} 1... d5 {[%clk 0:02:55.2]} 2. c4 {[%clk 0:03:02.3]}
2... c6 {[%clk 0:02:56.5]} 3. Nf3 {[%clk 0:03:02.6]} 3... Nf6 {[%clk 0:02:58]}
4. e3 {[%clk 0:03:03.7]} 4... Bf5 {[%clk 0:02:59.5]} 5. Nc3 {[%clk 0:03:02]}
5... e6 {[%clk 0:03:00.6]} 6. Nh4 {[%clk 0:03:03.2]} 6... Bg6 {[%clk 0:03:01.5]}
7. Be2 {[%clk 0:03:02.8]} 7... Nbd7 {[%clk 0:02:57.4]} 8. O-O {[%clk 0:02:59.5]}
8... Bd6 {[%clk 0:02:53.6]} 9. h3 {[%clk 0:02:49.6]} 9... Ne4 {[%clk 0:02:49.6]}
10. Nxg6 {[%clk 0:02:41.3]} 10... Nxc3 {[%clk 0:02:50.2]} 11. bxc3 {[%clk
0:02:39.5]} 11... hxg6 {[%clk 0:02:51.1]} 12. cxd5 {[%clk 0:02:37.8]} 12... cxd5
{[%clk 0:02:48.9]} 13. c4 {[%clk 0:02:36.1]} 13... dxc4 {[%clk 0:02:47.2]} 14.
Bxc4 {[%clk 0:02:33.4]} 14... O-O {[%clk 0:02:48.6]} 15. Bb3 {[%clk 0:02:28.3]}
15... Rc8 {[%clk 0:02:49.3]} 16. Bb2 {[%clk 0:02:24.9]} 16... Nb6 {[%clk
0:02:50]} 17. Qe2 {[%clk 0:02:22.5]} 17... Qd7 {[%clk 0:02:46.4]} 18. Rac1
{[%clk 0:02:20.8]} 18... Na4 {[%clk 0:02:46.2]} 19. Ba1 {[%clk 0:02:17.5]} 19...
Nb6 {[%clk 0:02:47.3]} 20. e4 {[%clk 0:02:15.7]} 20... Bf4 {[%clk 0:02:45.3]}
21. Rcd1 {[%clk 0:02:10.1]} 21... Na4 {[%clk 0:02:40.1]} 22. d5 {[%clk
0:01:56.6]} 22... Nc3 {[%clk 0:02:30]} 23. Bxc3 {[%clk 0:01:56.4]} 23... Rxc3
{[%clk 0:02:31.9]} 24. dxe6 {[%clk 0:01:57.5]} 24... Qxe6 {[%clk 0:02:33.8]} 25.
Bxe6 {[%clk 0:01:57.7]} 1-0

[Event "*** MasterClass Titled Tuesday Blitz"]
[Site "Chess.com"]
[Date "2017.12.05"]
[Round "9"]
[White "ChessMavenYeti"]
[Black "ENEASZ"]
[Result "0-1"]
[WhiteElo "2067"]
[BlackElo "2392"]
[TimeControl "180+2"]
[EndTime "16:08:24 PST"]
[Termination "ENEASZ won by resignation"]

1. d4 {[%clk 0:03:01.9]} 1... g6 {[%clk 0:02:59.8]} 2. c4 {[%clk 0:03:03]} 2...
Bg7 {[%clk 0:03:00.9]} 3. e4 {[%clk 0:03:03.9]} 3... d6 {[%clk 0:03:01.1]} 4.
Be2 {[%clk 0:03:04.1]} 4... e5 {[%clk 0:03:02.3]} 5. Be3 {[%clk 0:02:55.7]} 5...
Nc6 {[%clk 0:02:59.8]} 6. d5 {[%clk 0:02:53]} 6... Nd4 {[%clk 0:03:00.8]} 7.
Bxd4 {[%clk 0:02:51.1]} 7... exd4 {[%clk 0:03:02.7]} 8. Nf3 {[%clk 0:02:52]}
8... Nf6 {[%clk 0:03:03.5]} 9. Nxd4 {[%clk 0:02:35]} 9... Nxe4 {[%clk
0:03:03.3]} 10. O-O {[%clk 0:02:34.8]} 10... O-O {[%clk 0:03:03.7]} 11. Nc3
{[%clk 0:02:23.9]} 11... Nxc3 {[%clk 0:03:04]} 12. bxc3 {[%clk 0:02:25]} 12...
Re8 {[%clk 0:03:04.6]} 13. Bg4 {[%clk 0:02:22.9]} 13... Bd7 {[%clk 0:02:45.6]}
14. Bxd7 {[%clk 0:02:23.2]} 14... Qxd7 {[%clk 0:02:47.5]} 15. Rb1 {[%clk
0:02:24.1]} 15... c5 {[%clk 0:02:43.8]} 16. dxc6 {[%clk 0:01:55]} 16... bxc6
{[%clk 0:02:45.7]} 17. Qf3 {[%clk 0:01:50]} 17... Rac8 {[%clk 0:02:40.6]} 18.
Rfd1 {[%clk 0:01:47.2]} 18... d5 {[%clk 0:02:38.3]} 19. cxd5 {[%clk 0:01:45]}
19... cxd5 {[%clk 0:02:39.5]} 20. Nb3 {[%clk 0:01:39.9]} 20... Rxc3 {[%clk
0:02:36.9]} 21. Qxd5 {[%clk 0:01:39.8]} 21... Re1+ {[%clk 0:02:37.7]} 22. Rxe1
{[%clk 0:01:38.5]} 22... Qxd5 {[%clk 0:02:39.6]} 23. Rbd1 {[%clk 0:01:37.5]}
23... Rd3 {[%clk 0:02:38.9]} 24. Rc1 {[%clk 0:01:36.5]} 24... Bc3 {[%clk
0:02:38.1]} 0-1

[Event "*** MasterClass Titled Tuesday Blitz"]
[Site "Chess.com"]
[Date "2017.12.05"]
[Round "9"]
[White "ppchess2017"]
[Black "oogee"]
[Result "0-1"]
[WhiteElo "1802"]
[BlackElo "2112"]
[TimeControl "180+2"]
[EndTime "16:08:52 PST"]
[Termination "oogee won by checkmate"]

1. e4 {[%clk 0:03:00]} 1... c5 {[%clk 0:02:59.6]} 2. Nc3 {[%clk 0:02:59.9]} 2...
Nc6 {[%clk 0:02:57.7]} 3. Nf3 {[%clk 0:02:57.8]} 3... g6 {[%clk 0:02:47.4]} 4.
d4 {[%clk 0:02:58.5]} 4... cxd4 {[%clk 0:02:47.8]} 5. Nxd4 {[%clk 0:02:58.8]}
5... Bg7 {[%clk 0:02:48.4]} 6. Be3 {[%clk 0:02:50.3]} 6... Nf6 {[%clk
0:02:48.8]} 7. Bd3 {[%clk 0:02:44.5]} 7... O-O {[%clk 0:02:45.3]} 8. h4 {[%clk
0:02:44.2]} 8... d5 {[%clk 0:02:42.2]} 9. Nxc6 {[%clk 0:02:42.5]} 9... bxc6
{[%clk 0:02:39.4]} 10. exd5 {[%clk 0:02:43.3]} 10... cxd5 {[%clk 0:02:34.9]} 11.
Bg5 {[%clk 0:02:34.5]} 11... e5 {[%clk 0:02:31]} 12. h5 {[%clk 0:02:23.6]} 12...
e4 {[%clk 0:02:29]} 13. hxg6 {[%clk 0:02:08.2]} 13... fxg6 {[%clk 0:02:26.4]}
14. Bb5 {[%clk 0:01:53.1]} 14... d4 {[%clk 0:02:20.3]} 15. Bc4+ {[%clk
0:01:31.3]} 15... Kh8 {[%clk 0:02:20.5]} 16. Nxe4 {[%clk 0:01:29.7]} 16... Qa5+
{[%clk 0:02:20.9]} 17. Bd2 {[%clk 0:01:25.5]} 17... Qe5 {[%clk 0:02:20.3]} 18.
f3 {[%clk 0:01:20.5]} 18... Nxe4 {[%clk 0:02:13.3]} 19. fxe4 {[%clk 0:01:20.9]}
19... Qg3+ {[%clk 0:02:13.5]} 20. Ke2 {[%clk 0:01:20.1]} 20... Bg4# {[%clk
0:02:13.7]} 0-1

[Event "*** MasterClass Titled Tuesday Blitz"]
[Site "Chess.com"]
[Date "2017.12.05"]
[Round "9"]
[White "chesstrophy1"]
[Black "calemcc"]
[Result "0-1"]
[WhiteElo "1463"]
[BlackElo "2259"]
[TimeControl "180+2"]
[EndTime "16:09:12 PST"]
[Termination "calemcc won by checkmate"]

1. e4 {[%clk 0:03:01.9]} 1... e6 {[%clk 0:03:01]} 2. d4 {[%clk 0:03:01]} 2... d5
{[%clk 0:03:02.5]} 3. exd5 {[%clk 0:03:02.1]} 3... exd5 {[%clk 0:03:04.4]} 4. c4
{[%clk 0:03:02.5]} 4... Nf6 {[%clk 0:03:05.3]} 5. Nc3 {[%clk 0:03:02.4]} 5...
Be7 {[%clk 0:03:06.4]} 6. Nf3 {[%clk 0:03:03.2]} 6... O-O {[%clk 0:03:07.7]} 7.
Bf4 {[%clk 0:03:04.2]} 7... Bg4 {[%clk 0:03:08.9]} 8. h3 {[%clk 0:03:04.3]} 8...
Bh5 {[%clk 0:03:09.1]} 9. Be2 {[%clk 0:03:04.8]} 9... c6 {[%clk 0:03:08.4]} 10.
b3 {[%clk 0:03:05.8]} 10... Bb4 {[%clk 0:03:05.8]} 11. Qc2 {[%clk 0:03:04.2]}
11... Ne4 {[%clk 0:03:04.7]} 12. Bd2 {[%clk 0:03:01.2]} 12... Nxd2 {[%clk
0:03:04.5]} 13. Qxd2 {[%clk 0:03:00.8]} 13... Re8 {[%clk 0:03:00.5]} 14. O-O
{[%clk 0:03:01.1]} 14... Bxc3 {[%clk 0:03:00.9]} 15. Qxc3 {[%clk 0:02:57.8]}
15... Rxe2 {[%clk 0:03:02.4]} 16. Qd3 {[%clk 0:02:54.3]} 16... Bxf3 {[%clk
0:03:00.5]} 17. Qxf3 {[%clk 0:02:52.8]} 17... Re4 {[%clk 0:03:01.3]} 18. Rad1
{[%clk 0:02:51.7]} 18... Nd7 {[%clk 0:03:00.9]} 19. cxd5 {[%clk 0:02:48.7]}
19... cxd5 {[%clk 0:02:59.2]} 20. Rfe1 {[%clk 0:02:49]} 20... Nf6 {[%clk
0:02:59.5]} 21. Rxe4 {[%clk 0:02:46.4]} 21... Nxe4 {[%clk 0:02:59.8]} 22. Kf1
{[%clk 0:02:43.5]} 22... Qf6 {[%clk 0:02:58.4]} 23. Qxf6 {[%clk 0:02:42.2]}
23... Nxf6 {[%clk 0:02:57.6]} 24. Rc1 {[%clk 0:02:42.9]} 24... Kf8 {[%clk
0:02:53.8]} 25. Rc7 {[%clk 0:02:43.5]} 25... b6 {[%clk 0:02:48.7]} 26. f3 {[%clk
0:02:39.6]} 26... a5 {[%clk 0:02:46.4]} 27. Rc6 {[%clk 0:02:34.5]} 27... b5
{[%clk 0:02:41.3]} 28. Rc5 {[%clk 0:02:34.2]} 28... Rb8 {[%clk 0:02:42.7]} 29.
a3 {[%clk 0:02:33.9]} 29... Ke7 {[%clk 0:02:42.3]} 30. Ke2 {[%clk 0:02:34.3]}
30... Ke6 {[%clk 0:02:43.1]} 31. g3 {[%clk 0:02:33.1]} 31... Kd6 {[%clk
0:02:43.6]} 32. Kd3 {[%clk 0:02:33.7]} 32... Nd7 {[%clk 0:02:45]} 33. Rc2 {[%clk
0:02:32.4]} 33... Re8 {[%clk 0:02:46.3]} 34. b4 {[%clk 0:02:30.1]} 34... axb4
{[%clk 0:02:46.5]} 35. axb4 {[%clk 0:02:31]} 35... Ra8 {[%clk 0:02:48.2]} 36.
Ke2 {[%clk 0:02:27.5]} 36... Nb6 {[%clk 0:02:47.8]} 37. f4 {[%clk 0:02:27.4]}
37... Nc4 {[%clk 0:02:49.2]} 38. g4 {[%clk 0:02:25]} 38... Ra4 {[%clk
0:02:50.4]} 39. Kd3 {[%clk 0:02:22.2]} 39... Rxb4 {[%clk 0:02:50.8]} 40. Re2
{[%clk 0:02:22.3]} 40... Rb3+ {[%clk 0:02:50.5]} 41. Kc2 {[%clk 0:02:22.8]}
41... Re3 {[%clk 0:02:50.5]} 42. Rf2 {[%clk 0:02:18.6]} 42... b4 {[%clk
0:02:51]} 43. h4 {[%clk 0:02:17.4]} 43... b3+ {[%clk 0:02:52.4]} 44. Kc1 {[%clk
0:02:16.1]} 44... b2+ {[%clk 0:02:51.2]} 45. Kb1 {[%clk 0:02:16.3]} 45... Re1+
{[%clk 0:02:51.7]} 46. Kc2 {[%clk 0:02:13.4]} 46... b1=Q+ {[%clk 0:02:53.6]} 47.
Kc3 {[%clk 0:02:09.6]} 47... Re3# {[%clk 0:02:55.5]} 0-1